Workbook

Sheet Live Calc
A1: Figure 14-23. Eclipse Duration vs. Date for SCS Spacecraft Over One Year | E1: Constants and Conversion Factors
A2: Implemented by Anthony Shao, Microcosm. Contact: bookproject@smad.com | E2: Earth's Radius | F2: 6378.1366 | G2: km
A3: Version 1. August 4, 2011. copyright, 2011, Microcosm, Inc. | E3: μEarth | F3: 398600.4356 | G3: km3/s2
A4: See text for discussion. | E4: Geopotential coefficient J2 | F4: 0.00108263
A6: User Inputs in Orange
A8: Parameter | B8: Input | C8: Units
A9: Inclination, i (input 'synchronous' in cell B9 for a synchronous orbit) | B9: 0 | C9: deg | E9: Start Date
B10: =IF(B9="synch",ACOS(0.9856*(1-B11^2)^2/((3600*24*180/PI())*-1.5*#REF!*#REF!*(F2/B14)^2))*180/PI(),B9) -> 0 | C10: deg
A11: Eccentricity, e | B11: =(B13+F2)/B14-1 -> 0 | E11: 2012-01-01
A12: Perigee Altitude, Hp | B12: 21000 | C12: km
A13: Apogee Altitude, Ha | B13: 21000 | C13: km | E13: Ascending Node Local Time at Start
A14: Semi-major axis, a | B14: =(2*F2+B12+B13)/2 -> 27378.1366 | C14: km
A15: Orbit Period | B15: =SQRT(B14^3/F3)*2*PI() -> 45083.41574 | C15: sec | E15: 22:30:00
B16: =B15/60 -> 751.3902624 | C16: min
A17: Mean Motion, n | B17: =SQRT(F3/B14^3) -> 0.0001393679961 | C17: rad/s
A18: Node Rate | B18: =(3600*24*180/PI())*-1.5*B17*F4*(F2/B14)^2*COS(B10*PI()/180)/(1-B11^2)^2 -> -0.06080658413 | C18: deg/day
A50: Note: If the figure is not working, make sure Macros is enabled

Sheet Eclipse Duration
C2: Start Date | D2: Ascending Node Local Time at Start | E2: Orbit Precession Rate (deg/day) | F2: Orbit Normal Declination (deg)
C3: ='Live Calc'!E11 -> 2012-01-01 | D3: ='Live Calc'!E15 -> 22:30:00 | E3: ='Live Calc'!B18 -> -0.06080658413 | F3: =90-'Live Calc'!B10 -> 90
A5: Date | B5: Right Ascension, RA (hrs) | C5: Declination (deg) | D5: Distance (AU) | E5: Orbit Normal Right Ascension (hrs) | F5: Beta Angle, β (deg) | G5: cos(ρ*)/cos(β) | H5: Eclipse Duration (minutes)
A6: =C3 -> 2012-01-01 | B6: =SunPosition(A6) -> 18.72229454 | C6: -23.06321245 | D6: 0.9833211278 | E6: =MOD(B6+D3*24+6,24) -> 23.22229454 | F6: =90-ArcLength(E6,$F$3,B6,C6) -> -23.06321245 | G6: =COS(ASIN('Live Calc'!$F$2/'Live Calc'!$B$14))/COS(F6*PI()/180) -> 1.056965035 | H6: =IF(G6<1,'Live Calc'!$B$16*ACOS(G6)/PI(),0) -> 0
A7: =A6+1 -> 2012-01-02 | B7: =SunPosition(A7) -> 18.79589672 | C7: -22.98317585 | D7: 0.9833077072 | E7: =MOD((A7-A6)*$E$3/15+E6,24) -> 23.21824077 | F7: -22.98317585 | G7: =COS(ASIN('Live Calc'!$F$2/'Live Calc'!$B$14))/COS(F7*PI()/180) -> 1.056337789 | H7: =IF(G7<1,'Live Calc'!$B$16*ACOS(G7)/PI(),0) -> 0
A8: =A7+1 -> 2012-01-03 | B8: =SunPosition(A8) -> 18.86940922 | C8: -22.89549961 | D8: 0.9832993948 | E8: 23.214187 | F8: -22.89549961 | G8: =COS(ASIN('Live Calc'!$F$2/'Live Calc'!$B$14))/COS(F8*PI()/180) -> 1.055653887 | H8: =IF(G8<1,'Live Calc'!$B$16*ACOS(G8)/PI(),0) -> 0
A9: =A8+1 -> 2012-01-04 | B9: =SunPosition(A9) -> 18.94282351 | C9: -22.80022661 | D9: 0.9832961935 | E9: 23.21013322 | F9: -22.80022661 | G9: =COS(ASIN('Live Calc'!$F$2/'Live Calc'!$B$14))/COS(F9*PI()/180) -> 1.05491453 | H9: =IF(G9<1,'Live Calc'!$B$16*ACOS(G9)/PI(),0) -> 0
A10: 2012-01-05 | B10: =SunPosition(A10) -> 19.01613128 | C10: -22.69740347 | D10: 0.9832981042 | E10: 23.20607945 | F10: -22.69740347 | G10: =COS(ASIN('Live Calc'!$F$2/'Live Calc'!$B$14))/COS(F10*PI()/180) -> 1.05412101 | H10: =IF(G10<1,'Live Calc'!$B$16*ACOS(G10)/PI(),0) -> 0
A11: 2012-01-06 | B11: =SunPosition(A11) -> 19.08932442 | C11: -22.58708055 | D11: 0.9833051263 | E11: 23.20202568 | F11: -22.58708055 | G11: =COS(ASIN('Live Calc'!$F$2/'Live Calc'!$B$14))/COS(F11*PI()/180) -> 1.053274707 | H11: =IF(G11<1,'Live Calc'!$B$16*ACOS(G11)/PI(),0) -> 0
A12: 2012-01-07 | B12: =SunPosition(A12) -> 19.16239503 | C12: -22.46931183 | D12: 0.9833172576 | E12: 23.19797191 | F12: -22.46931183 | G12: =COS(ASIN('Live Calc'!$F$2/'Live Calc'!$B$14))/COS(F12*PI()/180) -> 1.052377087 | H12: =IF(G12<1,'Live Calc'!$B$16*ACOS(G12)/PI(),0) -> 0
A13: 2012-01-08 | B13: =SunPosition(A13) -> 19.23533545 | C13: -22.34415482 | D13: 0.9833344941 | E13: 23.19391813 | F13: -22.34415482 | G13: =COS(ASIN('Live Calc'!$F$2/'Live Calc'!$B$14))/COS(F13*PI()/180) -> 1.051429694 | H13: =IF(G13<1,'Live Calc'!$B$16*ACOS(G13)/PI(),0) -> 0
A14: 2012-01-09 | B14: =SunPosition(A14) -> 19.30813826 | C14: -22.21167049 | D14: 0.9833568302 | E14: 23.18986436 | F14: -22.21167049 | G14: =COS(ASIN('Live Calc'!$F$2/'Live Calc'!$B$14))/COS(F14*PI()/180) -> 1.050434149 | H14: =IF(G14<1,'Live Calc'!$B$16*ACOS(G14)/PI(),0) -> 0
A15: 2012-01-10 | B15: =SunPosition(A15) -> 19.3807963 | C15: -22.07192315 | D15: 0.9833842584 | E15: 23.18581059 | F15: -22.07192315 | G15: =COS(ASIN('Live Calc'!$F$2/'Live Calc'!$B$14))/COS(F15*PI()/180) -> 1.049392142 | H15: =IF(G15<1,'Live Calc'!$B$16*ACOS(G15)/PI(),0) -> 0
A16: 2012-01-11 | B16: =SunPosition(A16) -> 19.45330265 | C16: -21.9249804 | D16: 0.98341677 | E16: 23.18175682 | F16: -21.9249804 | G16: =COS(ASIN('Live Calc'!$F$2/'Live Calc'!$B$14))/COS(F16*PI()/180) -> 1.04830543 | H16: =IF(G16<1,'Live Calc'!$B$16*ACOS(G16)/PI(),0) -> 0
A17: 2012-01-12 | B17: =SunPosition(A17) -> 19.52565069 | C17: -21.77091295 | D17: 0.9834543543 | E17: 23.17770304 | F17: -21.77091295 | G17: =COS(ASIN('Live Calc'!$F$2/'Live Calc'!$B$14))/COS(F17*PI()/180) -> 1.047175831 | H17: =IF(G17<1,'Live Calc'!$B$16*ACOS(G17)/PI(),0) -> 0
A18: 2012-01-13 | B18: =SunPosition(A18) -> 19.59783408 | C18: -21.60979461 | D18: 0.9834969989 | E18: 23.17364927 | F18: -21.60979461 | G18: =COS(ASIN('Live Calc'!$F$2/'Live Calc'!$B$14))/COS(F18*PI()/180) -> 1.046005218 | H18: =IF(G18<1,'Live Calc'!$B$16*ACOS(G18)/PI(),0) -> 0
A19: 2012-01-14 | B19: =SunPosition(A19) -> 19.66984676 | C19: -21.44170209 | D19: 0.98354469 | E19: 23.1695955 | F19: -21.44170209 | G19: =COS(ASIN('Live Calc'!$F$2/'Live Calc'!$B$14))/COS(F19*PI()/180) -> 1.044795516 | H19: =IF(G19<1,'Live Calc'!$B$16*ACOS(G19)/PI(),0) -> 0
A20: 2012-01-15 | B20: =SunPosition(A20) -> 19.74168297 | C20: -21.26671497 | D20: 0.983597412 | E20: 23.16554173 | F20: -21.26671497 | G20: =COS(ASIN('Live Calc'!$F$2/'Live Calc'!$B$14))/COS(F20*PI()/180) -> 1.043548696 | H20: =IF(G20<1,'Live Calc'!$B$16*ACOS(G20)/PI(),0) -> 0
A21: 2012-01-16 | B21: =SunPosition(A21) -> 19.81333724 | C21: -21.08491553 | D21: 0.9836551477 | E21: 23.16148796 | F21: -21.08491553 | G21: =COS(ASIN('Live Calc'!$F$2/'Live Calc'!$B$14))/COS(F21*PI()/180) -> 1.042266769 | H21: =IF(G21<1,'Live Calc'!$B$16*ACOS(G21)/PI(),0) -> 0
A22: 2012-01-17 | B22: =SunPosition(A22) -> 19.88480442 | C22: -20.89638867 | D22: 0.9837178783 | E22: 23.15743418 | F22: -20.89638867 | G22: =COS(ASIN('Live Calc'!$F$2/'Live Calc'!$B$14))/COS(F22*PI()/180) -> 1.040951782 | H22: =IF(G22<1,'Live Calc'!$B$16*ACOS(G22)/PI(),0) -> 0
A23: 2012-01-18 | B23: =SunPosition(A23) -> 19.95607967 | C23: -20.70122179 | D23: 0.9837855833 | E23: 23.15338041 | F23: -20.70122179 | G23: =COS(ASIN('Live Calc'!$F$2/'Live Calc'!$B$14))/COS(F23*PI()/180) -> 1.039605813 | H23: =IF(G23<1,'Live Calc'!$B$16*ACOS(G23)/PI(),0) -> 0
A24: 2012-01-19 | B24: =SunPosition(A24) -> 20.02715846 | C24: -20.49950468 | D24: 0.9838582406 | E24: 23.14932664 | F24: -20.49950468 | G24: =COS(ASIN('Live Calc'!$F$2/'Live Calc'!$B$14))/COS(F24*PI()/180) -> 1.038230967 | H24: =IF(G24<1,'Live Calc'!$B$16*ACOS(G24)/PI(),0) -> 0
A25: 2012-01-20 | B25: =SunPosition(A25) -> 20.09803658 | C25: -20.29132936 | D25: 0.9839358267 | E25: 23.14527287 | F25: -20.29132936 | G25: =COS(ASIN('Live Calc'!$F$2/'Live Calc'!$B$14))/COS(F25*PI()/180) -> 1.036829368 | H25: =IF(G25<1,'Live Calc'!$B$16*ACOS(G25)/PI(),0) -> 0
A26: 2012-01-21 | B26: =SunPosition(A26) -> 20.16871013 | C26: -20.07679006 | D26: 0.9840183161 | E26: 23.14121909 | F26: -20.07679006 | G26: =COS(ASIN('Live Calc'!$F$2/'Live Calc'!$B$14))/COS(F26*PI()/180) -> 1.035403158 | H26: =IF(G26<1,'Live Calc'!$B$16*ACOS(G26)/PI(),0) -> 0
A27: 2012-01-22 | B27: =SunPosition(A27) -> 20.23917553 | C27: -19.85598301 | D27: 0.9841056821 | E27: 23.13716532 | F27: -19.85598301 | G27: =COS(ASIN('Live Calc'!$F$2/'Live Calc'!$B$14))/COS(F27*PI()/180) -> 1.03395449 | H27: =IF(G27<1,'Live Calc'!$B$16*ACOS(G27)/PI(),0) -> 0
A28: 2012-01-23 | B28: =SunPosition(A28) -> 20.30942953 | C28: -19.62900637 | D28: 0.9841978962 | E28: 23.13311155 | F28: -19.62900637 | G28: =COS(ASIN('Live Calc'!$F$2/'Live Calc'!$B$14))/COS(F28*PI()/180) -> 1.032485524 | H28: =IF(G28<1,'Live Calc'!$B$16*ACOS(G28)/PI(),0) -> 0
A29: 2012-01-24 | B29: =SunPosition(A29) -> 20.37946919 | C29: -19.39596012 | D29: 0.9842949284 | E29: 23.12905778 | F29: -19.39596012 | G29: =COS(ASIN('Live Calc'!$F$2/'Live Calc'!$B$14))/COS(F29*PI()/180) -> 1.030998422 | H29: =IF(G29<1,'Live Calc'!$B$16*ACOS(G29)/PI(),0) -> 0
A30: 2012-01-25 | B30: =SunPosition(A30) -> 20.44929187 | C30: -19.15694594 | D30: 0.9843967473 | E30: 23.12500401 | F30: -19.15694594 | G30: =COS(ASIN('Live Calc'!$F$2/'Live Calc'!$B$14))/COS(F30*PI()/180) -> 1.029495348 | H30: =IF(G30<1,'Live Calc'!$B$16*ACOS(G30)/PI(),0) -> 0
A31: 2012-01-26 | B31: =SunPosition(A31) -> 20.51889527 | C31: -18.91206709 | D31: 0.9845033197 | E31: 23.12095023 | F31: -18.91206709 | G31: =COS(ASIN('Live Calc'!$F$2/'Live Calc'!$B$14))/COS(F31*PI()/180) -> 1.027978457 | H31: =IF(G31<1,'Live Calc'!$B$16*ACOS(G31)/PI(),0) -> 0
A32: 2012-01-27 | B32: =SunPosition(A32) -> 20.5882774 | C32: -18.66142833 | D32: 0.9846146111 | E32: 23.11689646 | F32: -18.66142833 | G32: =COS(ASIN('Live Calc'!$F$2/'Live Calc'!$B$14))/COS(F32*PI()/180) -> 1.026449895 | H32: =IF(G32<1,'Live Calc'!$B$16*ACOS(G32)/PI(),0) -> 0
A33: 2012-01-28 | B33: =SunPosition(A33) -> 20.65743656 | C33: -18.40513577 | D33: 0.9847305853 | E33: 23.11284269 | F33: -18.40513577 | G33: =COS(ASIN('Live Calc'!$F$2/'Live Calc'!$B$14))/COS(F33*PI()/180) -> 1.024911797 | H33: =IF(G33<1,'Live Calc'!$B$16*ACOS(G33)/PI(),0) -> 0
A34: 2012-01-29 | B34: =SunPosition(A34) -> 20.72637137 | C34: -18.14329681 | D34: 0.9848512048 | E34: 23.10878892 | F34: -18.14329681 | G34: =COS(ASIN('Live Calc'!$F$2/'Live Calc'!$B$14))/COS(F34*PI()/180) -> 1.023366281 | H34: =IF(G34<1,'Live Calc'!$B$16*ACOS(G34)/PI(),0) -> 0
A35: 2012-01-30 | B35: =SunPosition(A35) -> 20.79508075 | C35: -17.87602001 | D35: 0.9849764305 | E35: 23.10473514 | F35: -17.87602001 | G35: =COS(ASIN('Live Calc'!$F$2/'Live Calc'!$B$14))/COS(F35*PI()/180) -> 1.021815443 | H35: =IF(G35<1,'Live Calc'!$B$16*ACOS(G35)/PI(),0) -> 0
A36: 2012-01-31 | B36: =SunPosition(A36) -> 20.86356391 | C36: -17.60341501 | D36: 0.9851062218 | E36: 23.10068137 | F36: -17.60341501 | G36: =COS(ASIN('Live Calc'!$F$2/'Live Calc'!$B$14))/COS(F36*PI()/180) -> 1.020261358 | H36: =IF(G36<1,'Live Calc'!$B$16*ACOS(G36)/PI(),0) -> 0
A37: 2012-02-01 | B37: =SunPosition(A37) -> 20.93182035 | C37: -17.32559239 | D37: 0.9852405368 | E37: 23.0966276 | F37: -17.32559239 | G37: =COS(ASIN('Live Calc'!$F$2/'Live Calc'!$B$14))/COS(F37*PI()/180) -> 1.018706075 | H37: =IF(G37<1,'Live Calc'!$B$16*ACOS(G37)/PI(),0) -> 0
A38: 2012-02-02 | B38: =SunPosition(A38) -> 20.99984987 | C38: -17.04266365 | D38: 0.9853793321 | E38: 23.09257383 | F38: -17.04266365 | G38: =COS(ASIN('Live Calc'!$F$2/'Live Calc'!$B$14))/COS(F38*PI()/180) -> 1.017151614 | H38: =IF(G38<1,'Live Calc'!$B$16*ACOS(G38)/PI(),0) -> 0
A39: 2012-02-03 | B39: =SunPosition(A39) -> 21.06765253 | C39: -16.75474105 | D39: 0.9855225629 | E39: 23.08852005 | F39: -16.75474105 | G39: =COS(ASIN('Live Calc'!$F$2/'Live Calc'!$B$14))/COS(F39*PI()/180) -> 1.015599963 | H39: =IF(G39<1,'Live Calc'!$B$16*ACOS(G39)/PI(),0) -> 0
A40: 2012-02-04 | B40: =SunPosition(A40) -> 21.13522868 | C40: -16.46193755 | D40: 0.9856701829 | E40: 23.08446628 | F40: -16.46193755 | G40: =COS(ASIN('Live Calc'!$F$2/'Live Calc'!$B$14))/COS(F40*PI()/180) -> 1.014053078 | H40: =IF(G40<1,'Live Calc'!$B$16*ACOS(G40)/PI(),0) -> 0
A41: 2012-02-05 | B41: =SunPosition(A41) -> 21.20257892 | C41: -16.16436674 | D41: 0.9858221445 | E41: 23.08041251 | F41: -16.16436674 | G41: =COS(ASIN('Live Calc'!$F$2/'Live Calc'!$B$14))/COS(F41*PI()/180) -> 1.012512878 | H41: =IF(G41<1,'Live Calc'!$B$16*ACOS(G41)/PI(),0) -> 0
A42: 2012-02-06 | B42: =SunPosition(A42) -> 21.26970414 | C42: -15.86214272 | D42: 0.9859783989 | E42: 23.07635874 | F42: -15.86214272 | G42: =COS(ASIN('Live Calc'!$F$2/'Live Calc'!$B$14))/COS(F42*PI()/180) -> 1.010981245 | H42: =IF(G42<1,'Live Calc'!$B$16*ACOS(G42)/PI(),0) -> 0
A43: 2012-02-07 | B43: =SunPosition(A43) -> 21.33660545 | C43: -15.55538007 | D43: 0.9861388957 | E43: 23.07230497 | F43: -15.55538007 | G43: =COS(ASIN('Live Calc'!$F$2/'Live Calc'!$B$14))/COS(F43*PI()/180) -> 1.009460021 | H43: =IF(G43<1,'Live Calc'!$B$16*ACOS(G43)/PI(),0) -> 0
A44: 2012-02-08 | B44: =SunPosition(A44) -> 21.40328423 | C44: -15.24419372 | D44: 0.9863035833 | E44: 23.06825119 | F44: -15.24419372 | G44: =COS(ASIN('Live Calc'!$F$2/'Live Calc'!$B$14))/COS(F44*PI()/180) -> 1.007951006 | H44: =IF(G44<1,'Live Calc'!$B$16*ACOS(G44)/PI(),0) -> 0
A45: 2012-02-09 | B45: =SunPosition(A45) -> 21.46974208 | C45: -14.92869893 | D45: 0.986472409 | E45: 23.06419742 | F45: -14.92869893 | G45: =COS(ASIN('Live Calc'!$F$2/'Live Calc'!$B$14))/COS(F45*PI()/180) -> 1.006455961 | H45: =IF(G45<1,'Live Calc'!$B$16*ACOS(G45)/PI(),0) -> 0
A46: 2012-02-10 | B46: =SunPosition(A46) -> 21.53598085 | C46: -14.60901118 | D46: 0.9866453184 | E46: 23.06014365 | F46: -14.60901118 | G46: =COS(ASIN('Live Calc'!$F$2/'Live Calc'!$B$14))/COS(F46*PI()/180) -> 1.004976598 | H46: =IF(G46<1,'Live Calc'!$B$16*ACOS(G46)/PI(),0) -> 0
A47: 2012-02-11 | B47: =SunPosition(A47) -> 21.6020026 | C47: -14.28524614 | D47: 0.9868222561 | E47: 23.05608988 | F47: -14.28524614 | G47: =COS(ASIN('Live Calc'!$F$2/'Live Calc'!$B$14))/COS(F47*PI()/180) -> 1.003514587 | H47: =IF(G47<1,'Live Calc'!$B$16*ACOS(G47)/PI(),0) -> 0
A48: 2012-02-12 | B48: =SunPosition(A48) -> 21.66780963 | C48: -13.95751958 | D48: 0.9870031657 | E48: 23.0520361 | F48: -13.95751958 | G48: =COS(ASIN('Live Calc'!$F$2/'Live Calc'!$B$14))/COS(F48*PI()/180) -> 1.002071553 | H48: =IF(G48<1,'Live Calc'!$B$16*ACOS(G48)/PI(),0) -> 0
A49: 2012-02-13 | B49: =SunPosition(A49) -> 21.73340441 | C49: -13.62594734 | D49: 0.987187989 | E49: 23.04798233 | F49: -13.62594734 | G49: =COS(ASIN('Live Calc'!$F$2/'Live Calc'!$B$14))/COS(F49*PI()/180) -> 1.000649072 | H49: =IF(G49<1,'Live Calc'!$B$16*ACOS(G49)/PI(),0) -> 0
A50: 2012-02-14 | B50: =SunPosition(A50) -> 21.79878966 | C50: -13.29064523 | D50: 0.9873766673 | E50: 23.04392856 | F50: -13.29064523 | G50: =COS(ASIN('Live Calc'!$F$2/'Live Calc'!$B$14))/COS(F50*PI()/180) -> 0.9992486726 | H50: =IF(G50<1,'Live Calc'!$B$16*ACOS(G50)/PI(),0) -> 9.271979969
A51: 2012-02-15 | B51: =SunPosition(A51) -> 21.86396825 | C51: -12.95172903 | D51: 0.9875691401 | E51: 23.03987479 | F51: -12.95172903 | G51: =COS(ASIN('Live Calc'!$F$2/'Live Calc'!$B$14))/COS(F51*PI()/180) -> 0.9978718368 | H51: =IF(G51<1,'Live Calc'!$B$16*ACOS(G51)/PI(),0) -> 15.60666852
A52: 2012-02-16 | B52: =SunPosition(A52) -> 21.92894326 | C52: -12.6093144 | D52: 0.9877653462 | E52: 23.03582102 | F52: -12.6093144 | G52: =COS(ASIN('Live Calc'!$F$2/'Live Calc'!$B$14))/COS(F52*PI()/180) -> 0.9965199969 | H52: =IF(G52<1,'Live Calc'!$B$16*ACOS(G52)/PI(),0) -> 19.95935614
A53: 2012-02-17 | B53: =SunPosition(A53) -> 21.99371795 | C53: -12.26351688 | D53: 0.9879652231 | E53: 23.03176724 | F53: -12.26351688 | G53: =COS(ASIN('Live Calc'!$F$2/'Live Calc'!$B$14))/COS(F53*PI()/180) -> 0.995194537 | H53: =IF(G53<1,'Live Calc'!$B$16*ACOS(G53)/PI(),0) -> 23.4569951
A54: 2012-02-18 | B54: =SunPosition(A54) -> 22.05829574 | C54: -11.9144518 | D54: 0.9881687072 | E54: 23.02771347 | F54: -11.9144518 | G54: =COS(ASIN('Live Calc'!$F$2/'Live Calc'!$B$14))/COS(F54*PI()/180) -> 0.9938967917 | H54: =IF(G54<1,'Live Calc'!$B$16*ACOS(G54)/PI(),0) -> 26.43814093
A55: 2012-02-19 | B55: =SunPosition(A55) -> 22.12268023 | C55: -11.56223426 | D55: 0.988375734 | E55: 23.0236597 | F55: -11.56223426 | G55: =COS(ASIN('Live Calc'!$F$2/'Live Calc'!$B$14))/COS(F55*PI()/180) -> 0.9926280468 | H55: =IF(G55<1,'Live Calc'!$B$16*ACOS(G55)/PI(),0) -> 29.05956656
A56: 2012-02-20 | B56: =SunPosition(A56) -> 22.18687516 | C56: -11.20697909 | D56: 0.9885862377 | E56: 23.01960593 | F56: -11.20697909 | G56: =COS(ASIN('Live Calc'!$F$2/'Live Calc'!$B$14))/COS(F56*PI()/180) -> 0.9913895388 | H56: =IF(G56<1,'Live Calc'!$B$16*ACOS(G56)/PI(),0) -> 31.40913745
A57: 2012-02-21 | B57: =SunPosition(A57) -> 22.25088443 | C57: -10.84880084 | D57: 0.9888001516 | E57: 23.01555215 | F57: -10.84880084 | G57: =COS(ASIN('Live Calc'!$F$2/'Live Calc'!$B$14))/COS(F57*PI()/180) -> 0.990182455 | H57: =IF(G57<1,'Live Calc'!$B$16*ACOS(G57)/PI(),0) -> 33.54193305
A58: 2012-02-22 | B58: =SunPosition(A58) -> 22.31471209 | C58: -10.48781371 | D58: 0.9890174081 | E58: 23.01149838 | F58: -10.48781371 | G58: =COS(ASIN('Live Calc'!$F$2/'Live Calc'!$B$14))/COS(F58*PI()/180) -> 0.9890079337 | H58: =IF(G58<1,'Live Calc'!$B$16*ACOS(G58)/PI(),0) -> 35.49514679
A59: 2012-02-23 | B59: =SunPosition(A59) -> 22.37836229 | C59: -10.12413156 | D59: 0.9892379386 | E59: 23.00744461 | F59: -10.12413156 | G59: =COS(ASIN('Live Calc'!$F$2/'Live Calc'!$B$14))/COS(F59*PI()/180) -> 0.9878670646 | H59: =IF(G59<1,'Live Calc'!$B$16*ACOS(G59)/PI(),0) -> 37.29526658
A60: 2012-02-24 | B60: =SunPosition(A60) -> 22.44183936 | C60: -9.757867859 | D60: 0.9894616733 | E60: 23.00339084 | F60: -9.757867859 | G60: =COS(ASIN('Live Calc'!$F$2/'Live Calc'!$B$14))/COS(F60*PI()/180) -> 0.9867608886 | H60: =IF(G60<1,'Live Calc'!$B$16*ACOS(G60)/PI(),0) -> 38.96192553
A61: 2012-02-25 | B61: =SunPosition(A61) -> 22.50514771 | C61: -9.389135666 | D61: 0.9896885419 | E61: 22.99933706 | F61: -9.389135666 | G61: =COS(ASIN('Live Calc'!$F$2/'Live Calc'!$B$14))/COS(F61*PI()/180) -> 0.9856903987 | H61: =IF(G61<1,'Live Calc'!$B$16*ACOS(G61)/PI(),0) -> 40.51013593
A62: 2012-02-26 | B62: =SunPosition(A62) -> 22.56829189 | C62: -9.018047619 | D62: 0.9899184728 | E62: 22.99528329 | F62: -9.018047619 | G62: =COS(ASIN('Live Calc'!$F$2/'Live Calc'!$B$14))/COS(F62*PI()/180) -> 0.9846565398 | H62: =IF(G62<1,'Live Calc'!$B$16*ACOS(G62)/PI(),0) -> 41.95166585
A63: 2012-02-27 | B63: =SunPosition(A63) -> 22.63127655 | C63: -8.644715911 | D63: 0.9901513938 | E63: 22.99122952 | F63: -8.644715911 | G63: =COS(ASIN('Live Calc'!$F$2/'Live Calc'!$B$14))/COS(F63*PI()/180) -> 0.9836602095 | H63: =IF(G63<1,'Live Calc'!$B$16*ACOS(G63)/PI(),0) -> 43.29592936
A64: 2012-02-28 | B64: =SunPosition(A64) -> 22.69410644 | C64: -8.269252276 | D64: 0.9903872319 | E64: 22.98717575 | F64: -8.269252276 | G64: =COS(ASIN('Live Calc'!$F$2/'Live Calc'!$B$14))/COS(F64*PI()/180) -> 0.9827022584 | H64: =IF(G64<1,'Live Calc'!$B$16*ACOS(G64)/PI(),0) -> 44.55058494
A65: 2012-02-29 | B65: =SunPosition(A65) -> 22.75678641 | C65: -7.891767973 | D65: 0.9906259131 | E65: 22.98312198 | F65: -7.891767973 | G65: =COS(ASIN('Live Calc'!$F$2/'Live Calc'!$B$14))/COS(F65*PI()/180) -> 0.9817834909 | H65: =IF(G65<1,'Live Calc'!$B$16*ACOS(G65)/PI(),0) -> 45.72195122
A66: 2012-03-01 | B66: =SunPosition(A66) -> 22.8193214 | C66: -7.512373778 | D66: 0.9908673626 | E66: 22.9790682 | F66: -7.512373778 | G66: =COS(ASIN('Live Calc'!$F$2/'Live Calc'!$B$14))/COS(F66*PI()/180) -> 0.9809046649 | H66: =IF(G66<1,'Live Calc'!$B$16*ACOS(G66)/PI(),0) -> 46.81530369
A67: 2012-03-02 | B67: =SunPosition(A67) -> 22.88171643 | C67: -7.131179971 | D67: 0.9911115051 | E67: 22.97501443 | F67: -7.131179971 | G67: =COS(ASIN('Live Calc'!$F$2/'Live Calc'!$B$14))/COS(F67*PI()/180) -> 0.9800664933 | H67: =IF(G67<1,'Live Calc'!$B$16*ACOS(G67)/PI(),0) -> 47.83509155
A68: 2012-03-03 | B68: =SunPosition(A68) -> 22.9439766 | C68: -6.748296332 | D68: 0.9913582643 | E68: 22.97096066 | F68: -6.748296332 | G68: =COS(ASIN('Live Calc'!$F$2/'Live Calc'!$B$14))/COS(F68*PI()/180) -> 0.9792696439 | H68: =IF(G68<1,'Live Calc'!$B$16*ACOS(G68)/PI(),0) -> 48.78509928
A69: 2012-03-04 | B69: =SunPosition(A69) -> 23.00610709 | C69: -6.363832133 | D69: 0.9916075633 | E69: 22.96690689 | F69: -6.363832133 | G69: =COS(ASIN('Live Calc'!$F$2/'Live Calc'!$B$14))/COS(F69*PI()/180) -> 0.9785147402 | H69: =IF(G69<1,'Live Calc'!$B$16*ACOS(G69)/PI(),0) -> 49.66856938
A70: 2012-03-05 | B70: =SunPosition(A70) -> 23.06811315 | C70: -5.977896133 | D70: 0.9918593246 | E70: 22.96285311 | F70: =90-ArcLength(E70,$F$3,B70,C70) -> -5.977896133 | G70: =COS(ASIN('Live Calc'!$F$2/'Live Calc'!$B$14))/COS(F70*PI()/180) -> 0.9778023619 | H70: =IF(G70<1,'Live Calc'!$B$16*ACOS(G70)/PI(),0) -> 50.48829678
A71: 2012-03-06 | B71: =SunPosition(A71) -> 23.13000007 | C71: -5.590596578 | D71: 0.99211347 | E71: =MOD((A71-A70)*$E$3/15+E70,24) -> 22.95879934 | F71: -5.590596578 | G71: =COS(ASIN('Live Calc'!$F$2/'Live Calc'!$B$14))/COS(F71*PI()/180) -> 0.9771330454 | H71: =IF(G71<1,'Live Calc'!$B$16*ACOS(G71)/PI(),0) -> 51.2467026
A72: 2012-03-07 | B72: =SunPosition(A72) -> 23.19177321 | C72: -5.202041197 | D72: 0.9923699205 | E72: 22.95474557 | F72: -5.202041197 | G72: =COS(ASIN('Live Calc'!$F$2/'Live Calc'!$B$14))/COS(F72*PI()/180) -> 0.9765072846 | H72: =IF(G72<1,'Live Calc'!$B$16*ACOS(G72)/PI(),0) -> 51.94589244
A73: =A72+1 -> 2012-03-08 | B73: =SunPosition(A73) -> 23.253438 | C73: -4.812337207 | D73: 0.9926285969 | E73: 22.9506918 | F73: -4.812337207 | G73: =COS(ASIN('Live Calc'!$F$2/'Live Calc'!$B$14))/COS(F73*PI()/180) -> 0.9759255312 | H73: =IF(G73<1,'Live Calc'!$B$16*ACOS(G73)/PI(),0) -> 52.58770282
A74: 2012-03-09 | B74: =SunPosition(A74) -> 23.31499988 | C74: -4.421591309 | D74: 0.992889419 | E74: 22.94663803 | F74: -4.421591309 | G74: =COS(ASIN('Live Calc'!$F$2/'Live Calc'!$B$14))/COS(F74*PI()/180) -> 0.9753881952 | H74: =IF(G74<1,'Live Calc'!$B$16*ACOS(G74)/PI(),0) -> 53.17373857
A75: 2012-03-10 | B75: =SunPosition(A75) -> 23.37646437 | C75: -4.029909695 | D75: 0.9931523063 | E75: 22.94258425 | F75: -4.029909695 | G75: =COS(ASIN('Live Calc'!$F$2/'Live Calc'!$B$14))/COS(F75*PI()/180) -> 0.9748956459 | H75: =IF(G75<1,'Live Calc'!$B$16*ACOS(G75)/PI(),0) -> 53.70540322
A76: 2012-03-11 | B76: =SunPosition(A76) -> 23.437837 | C76: -3.637398051 | D76: 0.9934171778 | E76: 22.93853048 | F76: -3.637398051 | G76: =COS(ASIN('Live Calc'!$F$2/'Live Calc'!$B$14))/COS(F76*PI()/180) -> 0.9744482117 | H76: =IF(G76<1,'Live Calc'!$B$16*ACOS(G76)/PI(),0) -> 54.18392363
A77: 2012-03-12 | B77: =SunPosition(A77) -> 23.49912334 | C77: -3.244161561 | D77: 0.9936839519 | E77: 22.93447671 | F77: -3.244161561 | G77: =COS(ASIN('Live Calc'!$F$2/'Live Calc'!$B$14))/COS(F77*PI()/180) -> 0.9740461814 | H77: =IF(G77<1,'Live Calc'!$B$16*ACOS(G77)/PI(),0) -> 54.61037033
A78: 2012-03-13 | B78: =SunPosition(A78) -> 23.560329 | C78: -2.850304915 | D78: 0.9939525468 | E78: 22.93042294 | F78: -2.850304915 | G78: =COS(ASIN('Live Calc'!$F$2/'Live Calc'!$B$14))/COS(F78*PI()/180) -> 0.973689804 | H78: =IF(G78<1,'Live Calc'!$B$16*ACOS(G78)/PI(),0) -> 54.98567409
A79: 2012-03-14 | B79: =SunPosition(A79) -> 23.62145959 | C79: -2.455932315 | D79: 0.9942228798 | E79: 22.92636916 | F79: -2.455932315 | G79: =COS(ASIN('Live Calc'!$F$2/'Live Calc'!$B$14))/COS(F79*PI()/180) -> 0.9733792896 | H79: =IF(G79<1,'Live Calc'!$B$16*ACOS(G79)/PI(),0) -> 55.31063962
A80: 2012-03-15 | B80: =SunPosition(A80) -> 23.68252077 | C80: -2.061147482 | D80: 0.9944948684 | E80: 22.92231539 | F80: -2.061147482 | G80: =COS(ASIN('Live Calc'!$F$2/'Live Calc'!$B$14))/COS(F80*PI()/180) -> 0.9731148096 | H80: =IF(G80<1,'Live Calc'!$B$16*ACOS(G80)/PI(),0) -> 55.58595674
A81: 2012-03-16 | B81: =SunPosition(A81) -> 23.74351819 | C81: -1.666053668 | D81: 0.9947684291 | E81: 22.91826162 | F81: -1.666053668 | G81: =COS(ASIN('Live Calc'!$F$2/'Live Calc'!$B$14))/COS(F81*PI()/180) -> 0.9728964974 | H81: =IF(G81<1,'Live Calc'!$B$16*ACOS(G81)/PI(),0) -> 55.8122096
A82: 2012-03-17 | B82: =SunPosition(A82) -> 23.80445753 | C82: -1.27075366 | D82: 0.9950434787 | E82: 22.91420785 | F82: -1.27075366 | G82: =COS(ASIN('Live Calc'!$F$2/'Live Calc'!$B$14))/COS(F82*PI()/180) -> 0.9727244484 | H82: =IF(G82<1,'Live Calc'!$B$16*ACOS(G82)/PI(),0) -> 55.98988398
A83: 2012-03-18 | B83: =SunPosition(A83) -> 23.86534445 | C83: -0.8753497937 | D83: 0.995319933 | E83: 22.91015407 | F83: -0.8753497937 | G83: =COS(ASIN('Live Calc'!$F$2/'Live Calc'!$B$14))/COS(F83*PI()/180) -> 0.9725987208 | H83: =IF(G83<1,'Live Calc'!$B$16*ACOS(G83)/PI(),0) -> 56.11937319
A84: 2012-03-19 | B84: =SunPosition(A84) -> 23.92618466 | C84: -0.4799439631 | D84: 0.9955977082 | E84: 22.9061003 | F84: -0.4799439631 | G84: =COS(ASIN('Live Calc'!$F$2/'Live Calc'!$B$14))/COS(F84*PI()/180) -> 0.9725193357 | H84: =IF(G84<1,'Live Calc'!$B$16*ACOS(G84)/PI(),0) -> 56.2009826
A85: 2012-03-20 | B85: =SunPosition(A85) -> 23.98698382 | C85: -0.08463762995 | D85: 0.9958767197 | E85: 22.90204653 | F85: -0.08463762995 | G85: =COS(ASIN('Live Calc'!$F$2/'Live Calc'!$B$14))/COS(F85*PI()/180) -> 0.9724862773 | H85: =IF(G85<1,'Live Calc'!$B$16*ACOS(G85)/PI(),0) -> 56.23493293
A86: 2012-03-21 | B86: =SunPosition(A86) -> 0.04774761197 | C86: 0.3104681641 | D86: 0.996156883 | E86: 22.89799276 | F86: 0.3104681641 | G86: =COS(ASIN('Live Calc'!$F$2/'Live Calc'!$B$14))/COS(F86*PI()/180) -> 0.9724994936 | H86: =IF(G86<1,'Live Calc'!$B$16*ACOS(G86)/PI(),0) -> 56.22136246
A87: 2012-03-22 | B87: =SunPosition(A87) -> 0.1084817096 | C87: 0.7052727865 | D87: 0.9964381131 | E87: 22.89393899 | F87: 0.7052727865 | G87: =COS(ASIN('Live Calc'!$F$2/'Live Calc'!$B$14))/COS(F87*PI()/180) -> 0.9725588962 | H87: =IF(G87<1,'Live Calc'!$B$16*ACOS(G87)/PI(),0) -> 56.16032815
A88: 2012-03-23 | B88: =SunPosition(A88) -> 0.1691917684 | C88: 1.099676003 | D88: 0.9967203251 | E88: 22.88988521 | F88: 1.099676003 | G88: =COS(ASIN('Live Calc'!$F$2/'Live Calc'!$B$14))/COS(F88*PI()/180) -> 0.9726643609 | H88: =IF(G88<1,'Live Calc'!$B$16*ACOS(G88)/PI(),0) -> 56.05180581
A89: 2012-03-24 | B89: =SunPosition(A89) -> 0.2298834305 | C89: 1.493577963 | D89: 0.9970034339 | E89: 22.88583144 | F89: 1.493577963 | G89: =COS(ASIN('Live Calc'!$F$2/'Live Calc'!$B$14))/COS(F89*PI()/180) -> 0.9728157277 | H89: =IF(G89<1,'Live Calc'!$B$16*ACOS(G89)/PI(),0) -> 55.89568917
A90: 2012-03-25 | B90: =SunPosition(A90) -> 0.2905623191 | C90: 1.886879194 | D90: 0.9972873541 | E90: 22.88177767 | F90: 1.886879194 | G90: =COS(ASIN('Live Calc'!$F$2/'Live Calc'!$B$14))/COS(F90*PI()/180) -> 0.973012801 | H90: =IF(G90<1,'Live Calc'!$B$16*ACOS(G90)/PI(),0) -> 55.69178799
A91: 2012-03-26 | B91: =SunPosition(A91) -> 0.3512340346 | C91: 2.279480582 | D91: 0.9975720003 | E91: 22.8777239 | F91: 2.279480582 | G91: =COS(ASIN('Live Calc'!$F$2/'Live Calc'!$B$14))/COS(F91*PI()/180) -> 0.9732553498 | H91: =IF(G91<1,'Live Calc'!$B$16*ACOS(G91)/PI(),0) -> 55.43982501
A92: 2012-03-27 | B92: =SunPosition(A92) -> 0.4119041508 | C92: 2.671283367 | D92: 0.997857287 | E92: 22.87367012 | F92: 2.671283367 | G92: =COS(ASIN('Live Calc'!$F$2/'Live Calc'!$B$14))/COS(F92*PI()/180) -> 0.9735431079 | H92: =IF(G92<1,'Live Calc'!$B$16*ACOS(G92)/PI(),0) -> 55.13943176
A93: 2012-03-28 | B93: =SunPosition(A93) -> 0.4725782119 | C93: 3.062189127 | D93: 0.9981431289 | E93: 22.86961635 | F93: 3.062189127 | G93: =COS(ASIN('Live Calc'!$F$2/'Live Calc'!$B$14))/COS(F93*PI()/180) -> 0.9738757737 | H93: =IF(G93<1,'Live Calc'!$B$16*ACOS(G93)/PI(),0) -> 54.79014305
A94: 2012-03-29 | B94: =SunPosition(A94) -> 0.5332617283 | C94: 3.452099767 | D94: 0.9984294402 | E94: 22.86556258 | F94: 3.452099767 | G94: =COS(ASIN('Live Calc'!$F$2/'Live Calc'!$B$14))/COS(F94*PI()/180) -> 0.9742530108 | H94: =IF(G94<1,'Live Calc'!$B$16*ACOS(G94)/PI(),0) -> 54.39138998
A95: 2012-03-30 | B95: =SunPosition(A95) -> 0.5939601733 | C95: 3.840917512 | D95: 0.9987161356 | E95: 22.86150881 | F95: 3.840917512 | G95: =COS(ASIN('Live Calc'!$F$2/'Live Calc'!$B$14))/COS(F95*PI()/180) -> 0.9746744475 | H95: =IF(G95<1,'Live Calc'!$B$16*ACOS(G95)/PI(),0) -> 53.94249126
A96: 2012-03-31 | B96: =SunPosition(A96) -> 0.6546789793 | C96: 4.228544892 | D96: 0.9990031295 | E96: 22.85745504 | F96: 4.228544892 | G96: =COS(ASIN('Live Calc'!$F$2/'Live Calc'!$B$14))/COS(F96*PI()/180) -> 0.9751396771 | H96: =IF(G96<1,'Live Calc'!$B$16*ACOS(G96)/PI(),0) -> 53.44264253
A97: 2012-04-01 | B97: =SunPosition(A97) -> 0.7154235344 | C97: 4.614884732 | D97: 0.9992903364 | E97: 22.85340126 | F97: 4.614884732 | G97: =COS(ASIN('Live Calc'!$F$2/'Live Calc'!$B$14))/COS(F97*PI()/180) -> 0.975648258 | H97: =IF(G97<1,'Live Calc'!$B$16*ACOS(G97)/PI(),0) -> 52.89090334
A98: 2012-04-02 | B98: =SunPosition(A98) -> 0.7761991786 | C98: 4.999840145 | D98: 0.9995776711 | E98: 22.84934749 | F98: 4.999840145 | G98: =COS(ASIN('Live Calc'!$F$2/'Live Calc'!$B$14))/COS(F98*PI()/180) -> 0.9761997135 | H98: =IF(G98<1,'Live Calc'!$B$16*ACOS(G98)/PI(),0) -> 52.28618128
A99: 2012-04-03 | B99: =SunPosition(A99) -> 0.8370112003 | C99: 5.383314522 | D99: 0.9998650483 | E99: 22.84529372 | F99: 5.383314522 | G99: =COS(ASIN('Live Calc'!$F$2/'Live Calc'!$B$14))/COS(F99*PI()/180) -> 0.9767935319 | H99: =IF(G99<1,'Live Calc'!$B$16*ACOS(G99)/PI(),0) -> 51.62721268
A100: 2012-04-04 | B100: =SunPosition(A100) -> 0.8978648324 | C100: 5.765211519 | D100: 1.000152383 | E100: 22.84123995 | F100: 5.765211519 | G100: =COS(ASIN('Live Calc'!$F$2/'Live Calc'!$B$14))/COS(F100*PI()/180) -> 0.9774291662 | H100: =IF(G100<1,'Live Calc'!$B$16*ACOS(G100)/PI(),0) -> 50.91253902
A101: 2012-04-05 | B101: =SunPosition(A101) -> 0.9587652488 | C101: 6.145435057 | D101: 1.00043959 | E101: 22.83718617 | F101: 6.145435057 | G101: =COS(ASIN('Live Calc'!$F$2/'Live Calc'!$B$14))/COS(F101*PI()/180) -> 0.9781060346 | H101: =IF(G101<1,'Live Calc'!$B$16*ACOS(G101)/PI(),0) -> 50.14047801
A102: 2012-04-06 | B102: =SunPosition(A102) -> 1.01971756 | C102: 6.523889306 | D102: 1.000726585 | E102: 22.8331324 | F102: 6.523889306 | G102: =COS(ASIN('Live Calc'!$F$2/'Live Calc'!$B$14))/COS(F102*PI()/180) -> 0.9788235199 | H102: =IF(G102<1,'Live Calc'!$B$16*ACOS(G102)/PI(),0) -> 49.30908804
A103: 2012-04-07 | B103: =SunPosition(A103) -> 1.080726812 | C103: 6.900478685 | D103: 1.001013282 | E103: 22.82907863 | F103: 6.900478685 | G103: =COS(ASIN('Live Calc'!$F$2/'Live Calc'!$B$14))/COS(F103*PI()/180) -> 0.9795809695 | H103: =IF(G103<1,'Live Calc'!$B$16*ACOS(G103)/PI(),0) -> 48.41612391
A104: 2012-04-08 | B104: =SunPosition(A104) -> 1.141797976 | C104: 7.275107854 | D104: 1.001299599 | E104: 22.82502486 | F104: 7.275107854 | G104: =COS(ASIN('Live Calc'!$F$2/'Live Calc'!$B$14))/COS(F104*PI()/180) -> 0.9803776957 | H104: =IF(G104<1,'Live Calc'!$B$16*ACOS(G104)/PI(),0) -> 47.45898151
A105: 2012-04-09 | B105: =SunPosition(A105) -> 1.202935954 | C105: 7.647681709 | D105: 1.00158545 | E105: 22.82097108 | F105: 7.647681709 | G105: =COS(ASIN('Live Calc'!$F$2/'Live Calc'!$B$14))/COS(F105*PI()/180) -> 0.9812129753 | H105: =IF(G105<1,'Live Calc'!$B$16*ACOS(G105)/PI(),0) -> 46.43462794
A106: 2012-04-10 | B106: =SunPosition(A106) -> 1.264145566 | C106: 8.018105377 | D106: 1.001870753 | E106: 22.81691731 | F106: 8.018105377 | G106: =COS(ASIN('Live Calc'!$F$2/'Live Calc'!$B$14))/COS(F106*PI()/180) -> 0.9820860494 | H106: =IF(G106<1,'Live Calc'!$B$16*ACOS(G106)/PI(),0) -> 45.33951197
A107: 2012-04-11 | B107: =SunPosition(A107) -> 1.325431551 | C107: 8.386284216 | D107: 1.002155422 | E107: 22.81286354 | F107: 8.386284216 | G107: =COS(ASIN('Live Calc'!$F$2/'Live Calc'!$B$14))/COS(F107*PI()/180) -> 0.9829961237 | H107: =IF(G107<1,'Live Calc'!$B$16*ACOS(G107)/PI(),0) -> 44.16944826
A108: 2012-04-12 | B108: =SunPosition(A108) -> 1.386798562 | C108: 8.752123811 | D108: 1.002439376 | E108: 22.80880977 | F108: 8.752123811 | G108: =COS(ASIN('Live Calc'!$F$2/'Live Calc'!$B$14))/COS(F108*PI()/180) -> 0.9839423682 | H108: =IF(G108<1,'Live Calc'!$B$16*ACOS(G108)/PI(),0) -> 42.91946495
A109: 2012-04-13 | B109: =SunPosition(A109) -> 1.448251162 | C109: 9.115529975 | D109: 1.002722532 | E109: 22.804756 | F109: 9.115529975 | G109: =COS(ASIN('Live Calc'!$F$2/'Live Calc'!$B$14))/COS(F109*PI()/180) -> 0.9849239171 | H109: =IF(G109<1,'Live Calc'!$B$16*ACOS(G109)/PI(),0) -> 41.58359979
A110: 2012-04-14 | B110: =SunPosition(A110) -> 1.509793818 | C110: 9.476408748 | D110: 1.003004807 | E110: 22.80070222 | F110: 9.476408748 | G110: =COS(ASIN('Live Calc'!$F$2/'Live Calc'!$B$14))/COS(F110*PI()/180) -> 0.9859398689 | H110: =IF(G110<1,'Live Calc'!$B$16*ACOS(G110)/PI(),0) -> 40.15462209
A111: 2012-04-15 | B111: =SunPosition(A111) -> 1.5714309 | C111: 9.834666399 | D111: 1.003286119 | E111: 22.79664845 | F111: 9.834666399 | G111: =COS(ASIN('Live Calc'!$F$2/'Live Calc'!$B$14))/COS(F111*PI()/180) -> 0.9869892863 | H111: =IF(G111<1,'Live Calc'!$B$16*ACOS(G111)/PI(),0) -> 38.6236443
A112: 2012-04-16 | B112: =SunPosition(A112) -> 1.633166675 | C112: 10.19020943 | D112: 1.003566386 | E112: 22.79259468 | F112: 10.19020943 | G112: =COS(ASIN('Live Calc'!$F$2/'Live Calc'!$B$14))/COS(F112*PI()/180) -> 0.9880711961 | H112: =IF(G112<1,'Live Calc'!$B$16*ACOS(G112)/PI(),0) -> 36.97956529
A113: 2012-04-17 | B113: =SunPosition(A113) -> 1.695005301 | C113: 10.54294458 | D113: 1.003845527 | E113: 22.78854091 | F113: 10.54294458 | G113: =COS(ASIN('Live Calc'!$F$2/'Live Calc'!$B$14))/COS(F113*PI()/180) -> 0.9891845895 | H113: =IF(G113<1,'Live Calc'!$B$16*ACOS(G113)/PI(),0) -> 35.20824616
A114: 2012-04-18 | B114: =SunPosition(A114) -> 1.756950828 | C114: 10.89277884 | D114: 1.004123462 | E114: 22.78448713 | F114: 10.89277884 | G114: =COS(ASIN('Live Calc'!$F$2/'Live Calc'!$B$14))/COS(F114*PI()/180) -> 0.9903284218 | H114: =IF(G114<1,'Live Calc'!$B$16*ACOS(G114)/PI(),0) -> 33.29124293
A115: 2012-04-19 | B115: =SunPosition(A115) -> 1.819007186 | C115: 11.23961943 | D115: 1.004400111 | E115: 22.78043336 | F115: 11.23961943 | G115: =COS(ASIN('Live Calc'!$F$2/'Live Calc'!$B$14))/COS(F115*PI()/180) -> 0.9915016126 | H115: =IF(G115<1,'Live Calc'!$B$16*ACOS(G115)/PI(),0) -> 31.20376496
A116: 2012-04-20 | B116: =SunPosition(A116) -> 1.881178189 | C116: 11.58337385 | D116: 1.004675393 | E116: 22.77637959 | F116: 11.58337385 | G116: =COS(ASIN('Live Calc'!$F$2/'Live Calc'!$B$14))/COS(F116*PI()/180) -> 0.9927030459 | H116: =IF(G116<1,'Live Calc'!$B$16*ACOS(G116)/PI(),0) -> 28.91118774
A117: 2012-04-21 | B117: =SunPosition(A117) -> 1.943467522 | C117: 11.92394986 | D117: 1.004949229 | E117: 22.77232582 | F117: 11.92394986 | G117: =COS(ASIN('Live Calc'!$F$2/'Live Calc'!$B$14))/COS(F117*PI()/180) -> 0.9939315705 | H117: =IF(G117<1,'Live Calc'!$B$16*ACOS(G117)/PI(),0) -> 26.36262858
A118: 2012-04-22 | B118: =SunPosition(A118) -> 2.005878745 | C118: 12.2612555 | D118: 1.005221541 | E118: 22.76827204 | F118: 12.2612555 | G118: =COS(ASIN('Live Calc'!$F$2/'Live Calc'!$B$14))/COS(F118*PI()/180) -> 0.9951859998 | H118: =IF(G118<1,'Live Calc'!$B$16*ACOS(G118)/PI(),0) -> 23.47783884
A119: 2012-04-23 | B119: =SunPosition(A119) -> 2.068415282 | C119: 12.59519911 | D119: 1.005492251 | E119: 22.76421827 | F119: 12.59519911 | G119: =COS(ASIN('Live Calc'!$F$2/'Live Calc'!$B$14))/COS(F119*PI()/180) -> 0.9964651123 | H119: =IF(G119<1,'Live Calc'!$B$16*ACOS(G119)/PI(),0) -> 20.1162263
A120: 2012-04-24 | B120: =SunPosition(A120) -> 2.131080419 | C120: 12.92568934 | D120: 1.005761281 | E120: 22.7601645 | F120: 12.92568934 | G120: =COS(ASIN('Live Calc'!$F$2/'Live Calc'!$B$14))/COS(F120*PI()/180) -> 0.9977676518 | H120: =IF(G120<1,'Live Calc'!$B$16*ACOS(G120)/PI(),0) -> 15.98425798
A121: 2012-04-25 | B121: =SunPosition(A121) -> 2.1938773 | C121: 13.25263516 | D121: 1.006028554 | E121: 22.75611073 | F121: 13.25263516 | G121: =COS(ASIN('Live Calc'!$F$2/'Live Calc'!$B$14))/COS(F121*PI()/180) -> 0.9990923278 | H121: =IF(G121<1,'Live Calc'!$B$16*ACOS(G121)/PI(),0) -> 10.19126412
A122: 2012-04-26 | B122: =SunPosition(A122) -> 2.256808921 | C122: 13.5759459 | D122: 1.006293994 | E122: 22.75205696 | F122: 13.5759459 | G122: =COS(ASIN('Live Calc'!$F$2/'Live Calc'!$B$14))/COS(F122*PI()/180) -> 1.000437816 | H122: =IF(G122<1,'Live Calc'!$B$16*ACOS(G122)/PI(),0) -> 0
A123: 2012-04-27 | B123: =SunPosition(A123) -> 2.319878126 | C123: 13.89553124 | D123: 1.006557525 | E123: 22.74800318 | F123: 13.89553124 | G123: =COS(ASIN('Live Calc'!$F$2/'Live Calc'!$B$14))/COS(F123*PI()/180) -> 1.001802759 | H123: =IF(G123<1,'Live Calc'!$B$16*ACOS(G123)/PI(),0) -> 0
A124: 2012-04-28 | B124: =SunPosition(A124) -> 2.383087604 | C124: 14.21130127 | D124: 1.006819073 | E124: 22.74394941 | F124: 14.21130127 | G124: =COS(ASIN('Live Calc'!$F$2/'Live Calc'!$B$14))/COS(F124*PI()/180) -> 1.003185765 | H124: =IF(G124<1,'Live Calc'!$B$16*ACOS(G124)/PI(),0) -> 0
A125: 2012-04-29 | B125: =SunPosition(A125) -> 2.446439881 | C125: 14.52316646 | D125: 1.007078563 | E125: 22.73989564 | F125: 14.52316646 | G125: =COS(ASIN('Live Calc'!$F$2/'Live Calc'!$B$14))/COS(F125*PI()/180) -> 1.004585412 | H125: =IF(G125<1,'Live Calc'!$B$16*ACOS(G125)/PI(),0) -> 0
A126: 2012-04-30 | B126: =SunPosition(A126) -> 2.50993732 | C126: 14.83103775 | D126: 1.007335921 | E126: 22.73584187 | F126: 14.83103775 | G126: =COS(ASIN('Live Calc'!$F$2/'Live Calc'!$B$14))/COS(F126*PI()/180) -> 1.006000246 | H126: =IF(G126<1,'Live Calc'!$B$16*ACOS(G126)/PI(),0) -> 0
A127: 2012-05-01 | B127: =SunPosition(A127) -> 2.573582112 | C127: 15.13482654 | D127: 1.007591075 | E127: 22.73178809 | F127: 15.13482654 | G127: =COS(ASIN('Live Calc'!$F$2/'Live Calc'!$B$14))/COS(F127*PI()/180) -> 1.007428782 | H127: =IF(G127<1,'Live Calc'!$B$16*ACOS(G127)/PI(),0) -> 0
A128: 2012-05-02 | B128: =SunPosition(A128) -> 2.637376276 | C128: 15.43444472 | D128: 1.007843953 | E128: 22.72773432 | F128: 15.43444472 | G128: =COS(ASIN('Live Calc'!$F$2/'Live Calc'!$B$14))/COS(F128*PI()/180) -> 1.008869505 | H128: =IF(G128<1,'Live Calc'!$B$16*ACOS(G128)/PI(),0) -> 0
A129: 2012-05-03 | B129: =SunPosition(A129) -> 2.70132165 | C129: 15.72980471 | D129: 1.008094483 | E129: 22.72368055 | F129: 15.72980471 | G129: =COS(ASIN('Live Calc'!$F$2/'Live Calc'!$B$14))/COS(F129*PI()/180) -> 1.010320872 | H129: =IF(G129<1,'Live Calc'!$B$16*ACOS(G129)/PI(),0) -> 0
A130: 2012-05-04 | B130: =SunPosition(A130) -> 2.765419891 | C130: 16.02081949 | D130: 1.008342594 | E130: 22.71962678 | F130: 16.02081949 | G130: =COS(ASIN('Live Calc'!$F$2/'Live Calc'!$B$14))/COS(F130*PI()/180) -> 1.01178131 | H130: =IF(G130<1,'Live Calc'!$B$16*ACOS(G130)/PI(),0) -> 0
A131: 2012-05-05 | B131: =SunPosition(A131) -> 2.829672468 | C131: 16.30740264 | D131: 1.008588217 | E131: 22.71557301 | F131: 16.30740264 | G131: =COS(ASIN('Live Calc'!$F$2/'Live Calc'!$B$14))/COS(F131*PI()/180) -> 1.013249224 | H131: =IF(G131<1,'Live Calc'!$B$16*ACOS(G131)/PI(),0) -> 0
A132: 2012-05-06 | B132: =SunPosition(A132) -> 2.894080661 | C132: 16.58946838 | D132: 1.008831282 | E132: 22.71151923 | F132: 16.58946838 | G132: =COS(ASIN('Live Calc'!$F$2/'Live Calc'!$B$14))/COS(F132*PI()/180) -> 1.014722989 | H132: =IF(G132<1,'Live Calc'!$B$16*ACOS(G132)/PI(),0) -> 0
A133: 2012-05-07 | B133: =SunPosition(A133) -> 2.958645552 | C133: 16.8669316 | D133: 1.009071722 | E133: 22.70746546 | F133: 16.8669316 | G133: =COS(ASIN('Live Calc'!$F$2/'Live Calc'!$B$14))/COS(F133*PI()/180) -> 1.016200958 | H133: =IF(G133<1,'Live Calc'!$B$16*ACOS(G133)/PI(),0) -> 0
A134: 2012-05-08 | B134: =SunPosition(A134) -> 3.023368028 | C134: 17.13970789 | D134: 1.00930947 | E134: 22.70341169 | F134: =90-ArcLength(E134,$F$3,B134,C134) -> 17.13970789 | G134: =COS(ASIN('Live Calc'!$F$2/'Live Calc'!$B$14))/COS(F134*PI()/180) -> 1.017681462 | H134: =IF(G134<1,'Live Calc'!$B$16*ACOS(G134)/PI(),0) -> 0
A135: 2012-05-09 | B135: =SunPosition(A135) -> 3.088248771 | C135: 17.40771362 | D135: 1.009544457 | E135: =MOD((A135-A134)*$E$3/15+E134,24) -> 22.69935792 | F135: 17.40771362 | G135: =COS(ASIN('Live Calc'!$F$2/'Live Calc'!$B$14))/COS(F135*PI()/180) -> 1.019162811 | H135: =IF(G135<1,'Live Calc'!$B$16*ACOS(G135)/PI(),0) -> 0
A136: 2012-05-10 | B136: =SunPosition(A136) -> 3.15328826 | C136: 17.67086595 | D136: 1.00977662 | E136: 22.69530414 | F136: 17.67086595 | G136: =COS(ASIN('Live Calc'!$F$2/'Live Calc'!$B$14))/COS(F136*PI()/180) -> 1.020643296 | H136: =IF(G136<1,'Live Calc'!$B$16*ACOS(G136)/PI(),0) -> 0
A137: =A136+1 -> 2012-05-11 | B137: =SunPosition(A137) -> 3.218486762 | C137: 17.92908289 | D137: 1.010005893 | E137: 22.69125037 | F137: 17.92908289 | G137: =COS(ASIN('Live Calc'!$F$2/'Live Calc'!$B$14))/COS(F137*PI()/180) -> 1.02212119 | H137: =IF(G137<1,'Live Calc'!$B$16*ACOS(G137)/PI(),0) -> 0
A138: 2012-05-12 | B138: =SunPosition(A138) -> 3.283844335 | C138: 18.18228334 | D138: 1.010232212 | E138: 22.6871966 | F138: 18.18228334 | G138: =COS(ASIN('Live Calc'!$F$2/'Live Calc'!$B$14))/COS(F138*PI()/180) -> 1.023594751 | H138: =IF(G138<1,'Live Calc'!$B$16*ACOS(G138)/PI(),0) -> 0
A139: 2012-05-13 | B139: =SunPosition(A139) -> 3.349360821 | C139: 18.43038716 | D139: 1.010455514 | E139: 22.68314283 | F139: 18.43038716 | G139: =COS(ASIN('Live Calc'!$F$2/'Live Calc'!$B$14))/COS(F139*PI()/180) -> 1.025062224 | H139: =IF(G139<1,'Live Calc'!$B$16*ACOS(G139)/PI(),0) -> 0
A140: 2012-05-14 | B140: =SunPosition(A140) -> 3.415035846 | C140: 18.67331518 | D140: 1.010675738 | E140: 22.67908905 | F140: 18.67331518 | G140: =COS(ASIN('Live Calc'!$F$2/'Live Calc'!$B$14))/COS(F140*PI()/180) -> 1.026521843 | H140: =IF(G140<1,'Live Calc'!$B$16*ACOS(G140)/PI(),0) -> 0
A141: 2012-05-15 | B141: =SunPosition(A141) -> 3.480868816 | C141: 18.91098932 | D141: 1.010892821 | E141: 22.67503528 | F141: 18.91098932 | G141: =COS(ASIN('Live Calc'!$F$2/'Live Calc'!$B$14))/COS(F141*PI()/180) -> 1.027971832 | H141: =IF(G141<1,'Live Calc'!$B$16*ACOS(G141)/PI(),0) -> 0
A142: 2012-05-16 | B142: =SunPosition(A142) -> 3.546858917 | C142: 19.14333255 | D142: 1.011106705 | E142: 22.67098151 | F142: 19.14333255 | G142: =COS(ASIN('Live Calc'!$F$2/'Live Calc'!$B$14))/COS(F142*PI()/180) -> 1.029410409 | H142: =IF(G142<1,'Live Calc'!$B$16*ACOS(G142)/PI(),0) -> 0
A143: 2012-05-17 | B143: =SunPosition(A143) -> 3.61300511 | C143: 19.37026904 | D143: 1.01131733 | E143: 22.66692774 | F143: 19.37026904 | G143: =COS(ASIN('Live Calc'!$F$2/'Live Calc'!$B$14))/COS(F143*PI()/180) -> 1.030835789 | H143: =IF(G143<1,'Live Calc'!$B$16*ACOS(G143)/PI(),0) -> 0
A144: 2012-05-18 | B144: =SunPosition(A144) -> 3.679306135 | C144: 19.59172415 | D144: 1.011524637 | E144: 22.66287397 | F144: 19.59172415 | G144: =COS(ASIN('Live Calc'!$F$2/'Live Calc'!$B$14))/COS(F144*PI()/180) -> 1.032246184 | H144: =IF(G144<1,'Live Calc'!$B$16*ACOS(G144)/PI(),0) -> 0
A145: 2012-05-19 | B145: =SunPosition(A145) -> 3.745760504 | C145: 19.80762453 | D145: 1.011728569 | E145: 22.65882019 | F145: 19.80762453 | G145: =COS(ASIN('Live Calc'!$F$2/'Live Calc'!$B$14))/COS(F145*PI()/180) -> 1.033639809 | H145: =IF(G145<1,'Live Calc'!$B$16*ACOS(G145)/PI(),0) -> 0
A146: 2012-05-20 | B146: =SunPosition(A146) -> 3.812366505 | C146: 20.01789814 | D146: 1.011929071 | E146: 22.65476642 | F146: 20.01789814 | G146: =COS(ASIN('Live Calc'!$F$2/'Live Calc'!$B$14))/COS(F146*PI()/180) -> 1.03501488 | H146: =IF(G146<1,'Live Calc'!$B$16*ACOS(G146)/PI(),0) -> 0
A147: 2012-05-21 | B147: =SunPosition(A147) -> 3.8791222 | C147: 20.22247433 | D147: 1.012126086 | E147: 22.65071265 | F147: 20.22247433 | G147: =COS(ASIN('Live Calc'!$F$2/'Live Calc'!$B$14))/COS(F147*PI()/180) -> 1.036369624 | H147: =IF(G147<1,'Live Calc'!$B$16*ACOS(G147)/PI(),0) -> 0
A148: 2012-05-22 | B148: =SunPosition(A148) -> 3.946025425 | C148: 20.42128392 | D148: 1.012319562 | E148: 22.64665888 | F148: 20.42128392 | G148: =COS(ASIN('Live Calc'!$F$2/'Live Calc'!$B$14))/COS(F148*PI()/180) -> 1.037702273 | H148: =IF(G148<1,'Live Calc'!$B$16*ACOS(G148)/PI(),0) -> 0
A149: 2012-05-23 | B149: =SunPosition(A149) -> 4.013073793 | C149: 20.61425921 | D149: 1.012509443 | E149: 22.6426051 | F149: 20.61425921 | G149: =COS(ASIN('Live Calc'!$F$2/'Live Calc'!$B$14))/COS(F149*PI()/180) -> 1.039011076 | H149: =IF(G149<1,'Live Calc'!$B$16*ACOS(G149)/PI(),0) -> 0
A150: 2012-05-24 | B150: =SunPosition(A150) -> 4.08026469 | C150: 20.80133409 | D150: 1.012695679 | E150: 22.63855133 | F150: 20.80133409 | G150: =COS(ASIN('Live Calc'!$F$2/'Live Calc'!$B$14))/COS(F150*PI()/180) -> 1.040294295 | H150: =IF(G150<1,'Live Calc'!$B$16*ACOS(G150)/PI(),0) -> 0
A151: 2012-05-25 | B151: =SunPosition(A151) -> 4.147595282 | C151: 20.98244406 | D151: 1.012878219 | E151: 22.63449756 | F151: 20.98244406 | G151: =COS(ASIN('Live Calc'!$F$2/'Live Calc'!$B$14))/COS(F151*PI()/180) -> 1.041550213 | H151: =IF(G151<1,'Live Calc'!$B$16*ACOS(G151)/PI(),0) -> 0
A152: 2012-05-26 | B152: =SunPosition(A152) -> 4.215062514 | C152: 21.15752633 | D152: 1.013057012 | E152: 22.63044379 | F152: 21.15752633 | G152: =COS(ASIN('Live Calc'!$F$2/'Live Calc'!$B$14))/COS(F152*PI()/180) -> 1.042777134 | H152: =IF(G152<1,'Live Calc'!$B$16*ACOS(G152)/PI(),0) -> 0
A153: 2012-05-27 | B153: =SunPosition(A153) -> 4.282663112 | C153: 21.32651984 | D153: 1.013232009 | E153: 22.62639002 | F153: 21.32651984 | G153: =COS(ASIN('Live Calc'!$F$2/'Live Calc'!$B$14))/COS(F153*PI()/180) -> 1.043973388 | H153: =IF(G153<1,'Live Calc'!$B$16*ACOS(G153)/PI(),0) -> 0
A154: 2012-05-28 | B154: =SunPosition(A154) -> 4.350393588 | C154: 21.48936536 | D154: 1.013403164 | E154: 22.62233624 | F154: 21.48936536 | G154: =COS(ASIN('Live Calc'!$F$2/'Live Calc'!$B$14))/COS(F154*PI()/180) -> 1.045137334 | H154: =IF(G154<1,'Live Calc'!$B$16*ACOS(G154)/PI(),0) -> 0
A155: 2012-05-29 | B155: =SunPosition(A155) -> 4.418250243 | C155: 21.64600554 | D155: 1.013570428 | E155: 22.61828247 | F155: 21.64600554 | G155: =COS(ASIN('Live Calc'!$F$2/'Live Calc'!$B$14))/COS(F155*PI()/180) -> 1.046267362 | H155: =IF(G155<1,'Live Calc'!$B$16*ACOS(G155)/PI(),0) -> 0
A156: 2012-05-30 | B156: =SunPosition(A156) -> 4.486229168 | C156: 21.79638493 | D156: 1.013733756 | E156: 22.6142287 | F156: 21.79638493 | G156: =COS(ASIN('Live Calc'!$F$2/'Live Calc'!$B$14))/COS(F156*PI()/180) -> 1.047361897 | H156: =IF(G156<1,'Live Calc'!$B$16*ACOS(G156)/PI(),0) -> 0
A157: 2012-05-31 | B157: =SunPosition(A157) -> 4.554326251 | C157: 21.9404501 | D157: 1.013893105 | E157: 22.61017493 | F157: 21.9404501 | G157: =COS(ASIN('Live Calc'!$F$2/'Live Calc'!$B$14))/COS(F157*PI()/180) -> 1.048419405 | H157: =IF(G157<1,'Live Calc'!$B$16*ACOS(G157)/PI(),0) -> 0
A158: 2012-06-01 | B158: =SunPosition(A158) -> 4.622537183 | C158: 22.07814966 | D158: 1.01404843 | E158: 22.60612115 | F158: 22.07814966 | G158: =COS(ASIN('Live Calc'!$F$2/'Live Calc'!$B$14))/COS(F158*PI()/180) -> 1.049438392 | H158: =IF(G158<1,'Live Calc'!$B$16*ACOS(G158)/PI(),0) -> 0
A159: 2012-06-02 | B159: =SunPosition(A159) -> 4.69085746 | C159: 22.20943432 | D159: 1.014199689 | E159: 22.60206738 | F159: 22.20943432 | G159: =COS(ASIN('Live Calc'!$F$2/'Live Calc'!$B$14))/COS(F159*PI()/180) -> 1.05041741 | H159: =IF(G159<1,'Live Calc'!$B$16*ACOS(G159)/PI(),0) -> 0
A160: 2012-06-03 | B160: =SunPosition(A160) -> 4.759282391 | C160: 22.33425695 | D160: 1.014346841 | E160: 22.59801361 | F160: 22.33425695 | G160: =COS(ASIN('Live Calc'!$F$2/'Live Calc'!$B$14))/COS(F160*PI()/180) -> 1.051355058 | H160: =IF(G160<1,'Live Calc'!$B$16*ACOS(G160)/PI(),0) -> 0
A161: 2012-06-04 | B161: =SunPosition(A161) -> 4.827807104 | C161: 22.45257265 | D161: 1.014489847 | E161: 22.59395984 | F161: 22.45257265 | G161: =COS(ASIN('Live Calc'!$F$2/'Live Calc'!$B$14))/COS(F161*PI()/180) -> 1.052249988 | H161: =IF(G161<1,'Live Calc'!$B$16*ACOS(G161)/PI(),0) -> 0
A162: 2012-06-05 | B162: =SunPosition(A162) -> 4.896426553 | C162: 22.56433876 | D162: 1.014628667 | E162: 22.58990606 | F162: 22.56433876 | G162: =COS(ASIN('Live Calc'!$F$2/'Live Calc'!$B$14))/COS(F162*PI()/180) -> 1.053100906 | H162: =IF(G162<1,'Live Calc'!$B$16*ACOS(G162)/PI(),0) -> 0
A163: 2012-06-06 | B163: =SunPosition(A163) -> 4.965135522 | C163: 22.66951497 | D163: 1.014763264 | E163: 22.58585229 | F163: 22.66951497 | G163: =COS(ASIN('Live Calc'!$F$2/'Live Calc'!$B$14))/COS(F163*PI()/180) -> 1.053906576 | H163: =IF(G163<1,'Live Calc'!$B$16*ACOS(G163)/PI(),0) -> 0
A164: 2012-06-07 | B164: =SunPosition(A164) -> 5.03392864 | C164: 22.7680633 | D164: 1.014893602 | E164: 22.58179852 | F164: 22.7680633 | G164: =COS(ASIN('Live Calc'!$F$2/'Live Calc'!$B$14))/COS(F164*PI()/180) -> 1.054665821 | H164: =IF(G164<1,'Live Calc'!$B$16*ACOS(G164)/PI(),0) -> 0
A165: 2012-06-08 | B165: =SunPosition(A165) -> 5.102800382 | C165: 22.85994821 | D165: 1.015019645 | E165: 22.57774475 | F165: 22.85994821 | G165: =COS(ASIN('Live Calc'!$F$2/'Live Calc'!$B$14))/COS(F165*PI()/180) -> 1.055377531 | H165: =IF(G165<1,'Live Calc'!$B$16*ACOS(G165)/PI(),0) -> 0
A166: 2012-06-09 | B166: =SunPosition(A166) -> 5.17174508 | C166: 22.94513659 | D166: 1.015141358 | E166: 22.57369098 | F166: 22.94513659 | G166: =COS(ASIN('Live Calc'!$F$2/'Live Calc'!$B$14))/COS(F166*PI()/180) -> 1.056040658 | H166: =IF(G166<1,'Live Calc'!$B$16*ACOS(G166)/PI(),0) -> 0
A167: 2012-06-10 | B167: =SunPosition(A167) -> 5.240756933 | C167: 23.02359784 | D167: 1.015258711 | E167: 22.5696372 | F167: 23.02359784 | G167: =COS(ASIN('Live Calc'!$F$2/'Live Calc'!$B$14))/COS(F167*PI()/180) -> 1.056654225 | H167: =IF(G167<1,'Live Calc'!$B$16*ACOS(G167)/PI(),0) -> 0
A168: 2012-06-11 | B168: =SunPosition(A168) -> 5.309830016 | C168: 23.0953039 | D168: 1.015371669 | E168: 22.56558343 | F168: 23.0953039 | G168: =COS(ASIN('Live Calc'!$F$2/'Live Calc'!$B$14))/COS(F168*PI()/180) -> 1.057217325 | H168: =IF(G168<1,'Live Calc'!$B$16*ACOS(G168)/PI(),0) -> 0
A169: 2012-06-12 | B169: =SunPosition(A169) -> 5.378958289 | C169: 23.16022925 | D169: 1.015480204 | E169: 22.56152966 | F169: 23.16022925 | G169: =COS(ASIN('Live Calc'!$F$2/'Live Calc'!$B$14))/COS(F169*PI()/180) -> 1.057729124 | H169: =IF(G169<1,'Live Calc'!$B$16*ACOS(G169)/PI(),0) -> 0
A170: 2012-06-13 | B170: =SunPosition(A170) -> 5.448135607 | C170: 23.21835101 | D170: 1.015584286 | E170: 22.55747589 | F170: 23.21835101 | G170: =COS(ASIN('Live Calc'!$F$2/'Live Calc'!$B$14))/COS(F170*PI()/180) -> 1.058188866 | H170: =IF(G170<1,'Live Calc'!$B$16*ACOS(G170)/PI(),0) -> 0
A171: 2012-06-14 | B171: =SunPosition(A171) -> 5.517355732 | C171: 23.26964888 | D171: 1.015683887 | E171: 22.55342211 | F171: 23.26964888 | G171: =COS(ASIN('Live Calc'!$F$2/'Live Calc'!$B$14))/COS(F171*PI()/180) -> 1.058595868 | H171: =IF(G171<1,'Live Calc'!$B$16*ACOS(G171)/PI(),0) -> 0
A172: 2012-06-15 | B172: =SunPosition(A172) -> 5.586612341 | C172: 23.31410526 | D172: 1.01577898 | E172: 22.54936834 | F172: 23.31410526 | G172: =COS(ASIN('Live Calc'!$F$2/'Live Calc'!$B$14))/COS(F172*PI()/180) -> 1.058949529 | H172: =IF(G172<1,'Live Calc'!$B$16*ACOS(G172)/PI(),0) -> 0
A173: 2012-06-16 | B173: =SunPosition(A173) -> 5.655899039 | C173: 23.3517052 | D173: 1.015869539 | E173: 22.54531457 | F173: 23.3517052 | G173: =COS(ASIN('Live Calc'!$F$2/'Live Calc'!$B$14))/COS(F173*PI()/180) -> 1.059249328 | H173: =IF(G173<1,'Live Calc'!$B$16*ACOS(G173)/PI(),0) -> 0
A174: 2012-06-17 | B174: =SunPosition(A174) -> 5.72520937 | C174: 23.38243647 | D174: 1.01595554 | E174: 22.5412608 | F174: 23.38243647 | G174: =COS(ASIN('Live Calc'!$F$2/'Live Calc'!$B$14))/COS(F174*PI()/180) -> 1.059494825 | H174: =IF(G174<1,'Live Calc'!$B$16*ACOS(G174)/PI(),0) -> 0
A175: 2012-06-18 | B175: =SunPosition(A175) -> 5.794536828 | C175: 23.40628952 | D175: 1.01603696 | E175: 22.53720703 | F175: 23.40628952 | G175: =COS(ASIN('Live Calc'!$F$2/'Live Calc'!$B$14))/COS(F175*PI()/180) -> 1.059685664 | H175: =IF(G175<1,'Live Calc'!$B$16*ACOS(G175)/PI(),0) -> 0
A176: 2012-06-19 | B176: =SunPosition(A176) -> 5.863874867 | C176: 23.42325755 | D176: 1.016113778 | E176: 22.53315325 | F176: 23.42325755 | G176: =COS(ASIN('Live Calc'!$F$2/'Live Calc'!$B$14))/COS(F176*PI()/180) -> 1.059821573 | H176: =IF(G176<1,'Live Calc'!$B$16*ACOS(G176)/PI(),0) -> 0
A177: 2012-06-20 | B177: =SunPosition(A177) -> 5.933216915 | C177: 23.43333649 | D177: 1.016185972 | E177: 22.52909948 | F177: 23.43333649 | G177: =COS(ASIN('Live Calc'!$F$2/'Live Calc'!$B$14))/COS(F177*PI()/180) -> 1.059902362 | H177: =IF(G177<1,'Live Calc'!$B$16*ACOS(G177)/PI(),0) -> 0
A178: 2012-06-21 | B178: =SunPosition(A178) -> 6.002556384 | C178: 23.43652498 | D178: 1.016253523 | E178: 22.52504571 | F178: 23.43652498 | G178: =COS(ASIN('Live Calc'!$F$2/'Live Calc'!$B$14))/COS(F178*PI()/180) -> 1.05992793 | H178: =IF(G178<1,'Live Calc'!$B$16*ACOS(G178)/PI(),0) -> 0
A179: 2012-06-22 | B179: =SunPosition(A179) -> 6.071886684 | C179: 23.43282444 | D179: 1.016316413 | E179: 22.52099194 | F179: 23.43282444 | G179: =COS(ASIN('Live Calc'!$F$2/'Live Calc'!$B$14))/COS(F179*PI()/180) -> 1.059898257 | H179: =IF(G179<1,'Live Calc'!$B$16*ACOS(G179)/PI(),0) -> 0
A180: 2012-06-23 | B180: =SunPosition(A180) -> 6.14120123 | C180: 23.42223898 | D180: 1.016374626 | E180: 22.51693816 | F180: 23.42223898 | G180: =COS(ASIN('Live Calc'!$F$2/'Live Calc'!$B$14))/COS(F180*PI()/180) -> 1.059813411 | H180: =IF(G180<1,'Live Calc'!$B$16*ACOS(G180)/PI(),0) -> 0
A181: 2012-06-24 | B181: =SunPosition(A181) -> 6.210493459 | C181: 23.40477546 | D181: 1.016428145 | E181: 22.51288439 | F181: 23.40477546 | G181: =COS(ASIN('Live Calc'!$F$2/'Live Calc'!$B$14))/COS(F181*PI()/180) -> 1.059673543 | H181: =IF(G181<1,'Live Calc'!$B$16*ACOS(G181)/PI(),0) -> 0
A182: 2012-06-25 | B182: =SunPosition(A182) -> 6.27975684 | C182: 23.38044346 | D182: 1.016476956 | E182: 22.50883062 | F182: 23.38044346 | G182: =COS(ASIN('Live Calc'!$F$2/'Live Calc'!$B$14))/COS(F182*PI()/180) -> 1.059478891 | H182: =IF(G182<1,'Live Calc'!$B$16*ACOS(G182)/PI(),0) -> 0
A183: 2012-06-26 | B183: =SunPosition(A183) -> 6.348984882 | C183: 23.34925524 | D183: 1.016521046 | E183: 22.50477685 | F183: 23.34925524 | G183: =COS(ASIN('Live Calc'!$F$2/'Live Calc'!$B$14))/COS(F183*PI()/180) -> 1.059229774 | H183: =IF(G183<1,'Live Calc'!$B$16*ACOS(G183)/PI(),0) -> 0
A184: 2012-06-27 | B184: =SunPosition(A184) -> 6.418171152 | C184: 23.31122578 | D184: 1.016560404 | E184: 22.50072307 | F184: 23.31122578 | G184: =COS(ASIN('Live Calc'!$F$2/'Live Calc'!$B$14))/COS(F184*PI()/180) -> 1.058926595 | H184: =IF(G184<1,'Live Calc'!$B$16*ACOS(G184)/PI(),0) -> 0
A185: 2012-06-28 | B185: =SunPosition(A185) -> 6.487309279 | C185: 23.26637269 | D185: 1.016595018 | E185: 22.4966693 | F185: 23.26637269 | G185: =COS(ASIN('Live Calc'!$F$2/'Live Calc'!$B$14))/COS(F185*PI()/180) -> 1.058569839 | H185: =IF(G185<1,'Live Calc'!$B$16*ACOS(G185)/PI(),0) -> 0
A186: 2012-06-29 | B186: =SunPosition(A186) -> 6.556392971 | C186: 23.21471623 | D186: 1.01662488 | E186: 22.49261553 | F186: 23.21471623 | G186: =COS(ASIN('Live Calc'!$F$2/'Live Calc'!$B$14))/COS(F186*PI()/180) -> 1.058160071 | H186: =IF(G186<1,'Live Calc'!$B$16*ACOS(G186)/PI(),0) -> 0
A187: 2012-06-30 | B187: =SunPosition(A187) -> 6.625416023 | C187: 23.15627928 | D187: 1.016649982 | E187: 22.48856176 | F187: 23.15627928 | G187: =COS(ASIN('Live Calc'!$F$2/'Live Calc'!$B$14))/COS(F187*PI()/180) -> 1.057697934 | H187: =IF(G187<1,'Live Calc'!$B$16*ACOS(G187)/PI(),0) -> 0
A188: 2012-07-01 | B188: =SunPosition(A188) -> 6.694372326 | C188: 23.09108728 | D188: 1.016670317 | E188: 22.48450799 | F188: 23.09108728 | G188: =COS(ASIN('Live Calc'!$F$2/'Live Calc'!$B$14))/COS(F188*PI()/180) -> 1.05718415 | H188: =IF(G188<1,'Live Calc'!$B$16*ACOS(G188)/PI(),0) -> 0
A189: 2012-07-02 | B189: =SunPosition(A189) -> 6.763255882 | C189: 23.01916823 | D189: 1.016685879 | E189: 22.48045421 | F189: 23.01916823 | G189: =COS(ASIN('Live Calc'!$F$2/'Live Calc'!$B$14))/COS(F189*PI()/180) -> 1.056619514 | H189: =IF(G189<1,'Live Calc'!$B$16*ACOS(G189)/PI(),0) -> 0
A190: 2012-07-03 | B190: =SunPosition(A190) -> 6.832060808 | C190: 22.94055264 | D190: 1.016696664 | E190: 22.47640044 | F190: 22.94055264 | G190: =COS(ASIN('Live Calc'!$F$2/'Live Calc'!$B$14))/COS(F190*PI()/180) -> 1.056004895 | H190: =IF(G190<1,'Live Calc'!$B$16*ACOS(G190)/PI(),0) -> 0
A191: 2012-07-04 | B191: =SunPosition(A191) -> 6.900781351 | C191: 22.85527346 | D191: 1.016702669 | E191: 22.47234667 | F191: 22.85527346 | G191: =COS(ASIN('Live Calc'!$F$2/'Live Calc'!$B$14))/COS(F191*PI()/180) -> 1.055341233 | H191: =IF(G191<1,'Live Calc'!$B$16*ACOS(G191)/PI(),0) -> 0
A192: 2012-07-05 | B192: =SunPosition(A192) -> 6.969411894 | C192: 22.76336609 | D192: 1.016703894 | E192: 22.4682929 | F192: 22.76336609 | G192: =COS(ASIN('Live Calc'!$F$2/'Live Calc'!$B$14))/COS(F192*PI()/180) -> 1.054629537 | H192: =IF(G192<1,'Live Calc'!$B$16*ACOS(G192)/PI(),0) -> 0
A193: 2012-07-06 | B193: =SunPosition(A193) -> 7.037946964 | C193: 22.66486831 | D193: 1.016700336 | E193: 22.46423912 | F193: 22.66486831 | G193: =COS(ASIN('Live Calc'!$F$2/'Live Calc'!$B$14))/COS(F193*PI()/180) -> 1.05387088 | H193: =IF(G193<1,'Live Calc'!$B$16*ACOS(G193)/PI(),0) -> 0
A194: 2012-07-07 | B194: =SunPosition(A194) -> 7.106381244 | C194: 22.5598202 | D194: 1.016691998 | E194: 22.46018535 | F194: 22.5598202 | G194: =COS(ASIN('Live Calc'!$F$2/'Live Calc'!$B$14))/COS(F194*PI()/180) -> 1.0530664 | H194: =IF(G194<1,'Live Calc'!$B$16*ACOS(G194)/PI(),0) -> 0
A195: 2012-07-08 | B195: =SunPosition(A195) -> 7.174709578 | C195: 22.44826414 | D195: 1.016678882 | E195: 22.45613158 | F195: 22.44826414 | G195: =COS(ASIN('Live Calc'!$F$2/'Live Calc'!$B$14))/COS(F195*PI()/180) -> 1.052217293 | H195: =IF(G195<1,'Live Calc'!$B$16*ACOS(G195)/PI(),0) -> 0
A196: 2012-07-09 | B196: =SunPosition(A196) -> 7.242926977 | C196: 22.33024474 | D196: 1.016660991 | E196: 22.45207781 | F196: 22.33024474 | G196: =COS(ASIN('Live Calc'!$F$2/'Live Calc'!$B$14))/COS(F196*PI()/180) -> 1.051324815 | H196: =IF(G196<1,'Live Calc'!$B$16*ACOS(G196)/PI(),0) -> 0
A197: 2012-07-10 | B197: =SunPosition(A197) -> 7.311028631 | C197: 22.20580876 | D197: 1.01663833 | E197: 22.44802404 | F197: 22.20580876 | G197: =COS(ASIN('Live Calc'!$F$2/'Live Calc'!$B$14))/COS(F197*PI()/180) -> 1.050390275 | H197: =IF(G197<1,'Live Calc'!$B$16*ACOS(G197)/PI(),0) -> 0
A198: 2012-07-11 | B198: =SunPosition(A198) -> 7.379009913 | C198: 22.0750051 | D198: 1.016610905 | E198: 22.44397026 | F198: =90-ArcLength(E198,$F$3,B198,C198) -> 22.0750051 | G198: =COS(ASIN('Live Calc'!$F$2/'Live Calc'!$B$14))/COS(F198*PI()/180) -> 1.049415032 | H198: =IF(G198<1,'Live Calc'!$B$16*ACOS(G198)/PI(),0) -> 0
A199: 2012-07-12 | B199: =SunPosition(A199) -> 7.446866382 | C199: 21.93788469 | D199: 1.016578723 | E199: =MOD((A199-A198)*$E$3/15+E198,24) -> 22.43991649 | F199: 21.93788469 | G199: =COS(ASIN('Live Calc'!$F$2/'Live Calc'!$B$14))/COS(F199*PI()/180) -> 1.048400497 | H199: =IF(G199<1,'Live Calc'!$B$16*ACOS(G199)/PI(),0) -> 0
A200: 2012-07-13 | B200: =SunPosition(A200) -> 7.514593793 | C200: 21.7945005 | D200: 1.016541793 | E200: 22.43586272 | F200: 21.7945005 | G200: =COS(ASIN('Live Calc'!$F$2/'Live Calc'!$B$14))/COS(F200*PI()/180) -> 1.047348122 | H200: =IF(G200<1,'Live Calc'!$B$16*ACOS(G200)/PI(),0) -> 0
A201: =A200+1 -> 2012-07-14 | B201: =SunPosition(A201) -> 7.582188102 | C201: 21.64490739 | D201: 1.016500125 | E201: 22.43180895 | F201: 21.64490739 | G201: =COS(ASIN('Live Calc'!$F$2/'Live Calc'!$B$14))/COS(F201*PI()/180) -> 1.046259404 | H201: =IF(G201<1,'Live Calc'!$B$16*ACOS(G201)/PI(),0) -> 0
A202: 2012-07-15 | B202: =SunPosition(A202) -> 7.649645465 | C202: 21.48916214 | D202: 1.016453729 | E202: 22.42775517 | F202: 21.48916214 | G202: =COS(ASIN('Live Calc'!$F$2/'Live Calc'!$B$14))/COS(F202*PI()/180) -> 1.045135874 | H202: =IF(G202<1,'Live Calc'!$B$16*ACOS(G202)/PI(),0) -> 0
... 170 more rows
